bitfinex/quotes_ETHUSD_20241204
["timestamp","ask_amount","ask_price","bid_price","bid_amount"]
[1733295544178,0.75,3700.9,3700.8,1.15682581]
[1733295544516,1.0031409,3700.9,3700.8,1.15682581]
[1733295544835,1.0031409,3700.9,3699.5,1.15682581]
[1733295544836,2.70231,3700.6,3699.5,1.15682581]
[1733295544981,0.65817952,3700.5,3699.8,1.15682581]
[1733295545174,0.75,3700.9,3700.4,1.15682581]
[1733295545519,0.65832683,3700.8,3700.4,1.15682581]
[1733295545813,0.65832683,3700.7,3699.9,2.56525615]
[1733295546015,0.65832683,3700.6,3699.9,2.56525615]
[1733295546186,0.75,3700.9,3700.3,2.56525615]
[1733295546187,0.25320263,3700.5,3700.3,2.56525615]
[1733295546370,0.25317941,3700.4,3700.3,2.56525615]
[1733295546570,0.75,3700.9,3700.3,5.26771615]
[1733295547009,0.65822194,3700.8,3700.3,5.26771615]
[1733295547315,0.25316228,3700.7,3700.3,5.26769615]
[1733295547476,0.25316228,3700.6,3700.3,5.26769615]
[1733295547676,0.40505579,3700.8,3700.3,5.26769615]
[1733295548001,0.25315953,3700.7,3700.3,5.26769615]
[1733295548187,0.25315953,3700.6,3700.4,3.22916961]
[1733295548389,0.75,3700.9,3700.4,3.22916961]
[1733295548570,0.75,3700.9,3700.4,2.7024]
[1733295548773,0.25316293,3700.8,3700.4,2.7024]
[1733295549010,0.25316293,3700.7,3700.3,2.56525615]
[1733295549186,0.25316293,3700.6,3700.3,2.56525615]
[1733295549515,0.25316293,3700.6,3700.2,2.70254]
[1733295549516,0.75,3700.9,3700.0,0.25652562]
[1733295549812,0.65823986,3700.8,3700.2,2.70252]
[1733295549975,0.25316918,3700.7,3700.2,2.70252]
[1733295550173,0.25317115,3700.6,3700.2,2.70252]
[1733295550396,0.25317115,3700.5,3700.2,3.25495018]
[1733295550583,0.25317115,3700.4,3700.2,3.25495018]
[1733295550909,0.75,3700.9,3700.2,3.25495018]
[1733295551218,0.65826819,3700.8,3700.2,2.70252]
[1733295551401,0.65826819,3700.7,3700.2,2.70252]
[1733295551609,0.25318007,3700.6,3700.2,2.70252]
[1733295551783,0.75,3700.9,3700.2,2.70252]
[1733295551784,0.25318007,3700.5,3700.2,2.70252]
[1733295551984,0.25318007,3700.4,3700.2,2.70252]
[1733295552324,0.40509215,3700.7,3700.2,2.70255]
[1733295552480,0.25318889,3700.6,3700.2,2.70255]
[1733295552680,0.25318889,3700.5,3700.2,2.70255]
[1733295552923,0.25318889,3700.4,3700.2,2.70255]
[1733295553112,0.40509273,3700.7,3700.1,2.70262]
[1733295553426,0.75,3700.9,3700.1,2.70262]
[1733295553427,0.6582875,3700.6,3700.1,2.70262]
[1733295553642,0.25318908,3700.5,3700.1,2.70262]
[1733295553786,0.25318908,3700.4,3700.1,2.70262]
[1733295553982,0.25318908,3700.3,3700.1,2.70262]
[1733295554185,0.40510142,3700.6,3700.1,2.70262]
[1733295554386,0.25317557,3700.5,3700.1,2.70262]
[1733295554588,0.25317557,3700.4,3699.7,2.70291]
[1733295554883,0.65829577,3700.3,3699.4,0.54159161]
[1733295555098,0.65829577,3700.2,3699.4,1.19847439]
[1733295555308,0.25317557,3700.1,3699.4,1.19847439]
[1733295555507,0.25317557,3700.0,3699.4,1.19847439]
[1733295555708,0.40503467,3700.4,3699.5,2.70306]
[1733295555911,0.65817846,3700.3,3699.5,2.70306]
[1733295556116,0.65817846,3700.2,3699.5,2.70306]
[1733295556318,0.25314379,3700.1,3699.4,3.24470161]
[1733295556527,0.25314379,3700.0,3699.5,3.23608318]
[1733295556822,0.40494606,3700.2,3699.5,3.23608318]
[1733295557025,0.25309112,3700.1,3699.5,3.23608318]
[1733295557198,2.98476019,3700.6,3699.6,2.70298]
[1733295557403,0.65790003,3700.5,3699.6,2.70296]
[1733295557720,0.65790003,3700.4,3699.7,2.56525615]
[1733295557895,0.25303847,3700.3,3699.7,2.56525615]
[1733295558097,0.25303847,3700.2,3700.1,2.70261]
[1733295558292,0.40485623,3700.8,3700.3,2.70248]
[1733295558486,0.65784831,3700.7,3700.3,2.70248]
[1733295558685,0.65784831,3700.6,3699.8,3.48408]
[1733295558920,0.25299208,3700.5,3699.9,0.66303169]
[1733295559130,0.25299208,3700.4,3699.9,0.66303169]
[1733295559327,0.40477862,3700.6,3700.2,2.70254]
[1733295559530,0.25298339,3700.5,3700.1,2.56525615]
[1733295559683,0.75,3700.9,3700.3,2.70243]
[1733295559883,0.65772605,3700.8,3700.3,2.70243]
[1733295560082,0.25297156,3700.7,3700.4,2.7024]
[1733295560327,0.25297156,3700.6,3700.4,2.7024]
[1733295560630,0.75,3700.9,3700.1,2.56525615]
[1733295560790,0.25296402,3700.8,3700.5,2.70233]
[1733295561127,0.25295863,3700.7,3700.5,2.70227]
[1733295561333,0.75,3700.9,3700.5,2.70227]
[1733295561499,0.25296899,3700.8,3700.5,2.70227]
[1733295561699,0.25296899,3700.7,3700.2,2.70255]
[1733295561931,0.75,3700.9,3700.3,1.38205746]
[1733295562225,0.25296212,3700.8,3700.6,2.70224]
[1733295562430,0.25296212,3700.7,3700.6,2.70224]
[1733295563898,0.25296212,3700.7,3700.4,2.70234]
[1733295564098,0.25296212,3700.6,3700.4,2.70234]
[1733295564288,0.75,3700.9,3700.1,3.10502465]
[1733295564488,0.4048027,3700.8,3700.6,2.70223]
[1733295564824,0.25299902,3700.7,3700.6,2.70223]
[1733295565183,0.25299902,3700.7,3700.4,2.70235]
[1733295565384,0.25299647,3700.6,3700.4,2.70234]
[1733295565703,0.75,3700.9,3700.4,2.70234]
[1733295566033,0.25300379,3700.8,3700.4,2.70234]
[1733295566195,0.25300379,3700.7,3700.4,2.70234]
[1733295566394,0.75,3700.9,3700.1,3.10502465]
[1733295566711,0.75,3700.9,3700.3,2.70242]
[1733295567389,0.75,3700.9,3700.4,2.7024]
[1733295567587,0.65780433,3700.8,3700.4,2.7024]
[1733295567893,0.25300166,3700.7,3700.4,2.7024]
[1733295568130,0.75,3700.9,3700.4,2.7024]
[1733295568131,0.25301061,3700.6,3700.4,2.7024]
[1733295568406,0.75,3700.9,3700.5,2.70232]
[1733295568734,0.25300992,3700.8,3700.6,2.70224]
[1733295568934,0.25300992,3700.7,3700.6,2.70224]
[1733295569494,0.25300992,3700.7,3700.5,2.56525615]
[1733295569694,0.75,3700.9,3700.5,2.56525615]
[1733295569890,0.75,3700.9,3700.7,2.70213]
[1733295569891,0.25299765,3700.8,3700.7,2.70213]
[1733295570423,0.25299765,3700.8,3700.6,2.70224]
[1733295570652,0.25299765,3700.7,3700.6,2.70224]
[1733295570846,0.75,3700.9,3700.5,2.56525615]
[1733295571128,0.25299487,3700.8,3700.7,2.70218]
[1733295571623,0.2530129,3700.8,3700.7,2.70218]
[1733295572117,0.25300896,3700.8,3700.7,2.70218]
[1733295573859,0.53554576,3700.8,3700.7,2.70218]
[1733295574072,0.53554576,3700.8,3700.5,5.26758615]
[1733295574274,0.25300896,3700.7,3700.5,5.26758615]
[1733295574490,0.2825368,3700.8,3700.5,5.26758615]
[1733295574777,0.25305752,3700.7,3700.5,5.26758615]
[1733295575073,0.2825368,3700.8,3700.5,5.26758615]
[1733295575246,0.25306164,3700.7,3700.5,5.26758615]
[1733295575449,0.25306164,3700.6,3700.5,5.26758615]
[1733295575849,0.2825368,3700.8,3700.5,5.26758615]
[1733295576044,0.25305888,3700.7,3700.5,2.56525615]
[1733295576378,0.2825368,3700.8,3700.1,3.10502465]
[1733295576547,0.25305538,3700.7,3700.3,2.70242]
[1733295576749,0.25306355,3700.6,3700.3,2.70242]
[1733295576931,0.75,3700.9,3700.3,2.70242]
[1733295577277,0.65796982,3700.8,3700.3,2.70242]
[1733295577460,0.75,3700.9,3700.2,2.70255]
[1733295577461,0.25306496,3700.7,3700.2,2.70255]
[1733295577798,0.75,3700.9,3700.2,2.70255]
[1733295577799,0.25306496,3700.6,3700.2,2.70255]
[1733295577982,0.25306496,3700.5,3700.1,3.10502465]
[1733295578136,0.75,3700.9,3700.4,2.70241]
[1733295578472,0.65798288,3700.8,3700.1,3.10502465]
[1733295578678,0.75,3700.9,3700.1,3.10502465]
[1733295578679,0.25307034,3700.7,3700.1,3.10502465]
[1733295578877,0.25307034,3700.6,3700.1,3.10502465]
[1733295579170,0.25307034,3700.5,3700.3,2.70247]
[1733295579334,0.40492333,3700.8,3700.3,2.70247]
[1733295579536,0.25307707,3700.7,3700.1,3.10502465]
[1733295579849,0.75,3700.9,3700.0,2.70263]
[1733295579850,0.25307707,3700.6,3700.0,2.70263]
[1733295580054,0.25307707,3700.5,3700.0,2.70263]
[1733295580231,0.25307707,3700.4,3700.0,2.70263]
[1733295580576,0.40494431,3700.7,3700.0,2.70263]
[1733295580741,0.25308255,3700.6,3700.0,2.70263]
[1733295580937,0.25308255,3700.5,3700.0,2.70263]
[1733295581277,0.25308255,3700.4,3700.0,2.70263]
[1733295581440,0.002,3700.4,3700.0,2.70263]
[1733295581652,0.002,3700.4,3699.8,3.53102274]
[1733295581880,0.25308367,3700.3,3699.9,2.70274]
[1733295582089,0.002,3700.4,3699.9,2.70274]
[1733295582385,0.002,3700.4,3700.0,2.70268]
[1733295582386,0.25308136,3700.3,3700.0,2.70268]
[1733295582585,0.002,3700.4,3700.0,2.70268]
[1733295582798,0.25308032,3700.3,3699.4,3.7542]
[1733295583081,0.25308032,3700.2,3699.7,2.70289]
[1733295583285,0.25308032,3700.1,3699.7,2.70289]
[1733295583473,0.25308266,3700.0,3699.7,2.70289]
[1733295583671,2.70442,3700.4,3699.5,2.56525615]
[1733295583870,0.65805247,3700.3,3699.7,2.7029]
[1733295584180,0.2530971,3700.2,3699.8,2.70284]
[1733295584350,0.2530971,3700.1,3699.8,2.70284]
[1733295584542,0.2530971,3700.0,3699.8,2.70284]
[1733295584743,0.40489291,3700.3,3699.5,3.10358015]
[1733295584985,0.2530581,3700.2,3699.9,2.70275]
[1733295585148,0.2530581,3700.1,3699.9,2.70275]
[1733295585346,0.002,3700.4,3699.6,1.33626602]
[1733295585568,0.25306438,3700.3,3699.7,2.70289]
[1733295585772,0.25306438,3700.2,3699.7,2.70289]
[1733295585956,0.25306438,3700.1,3699.7,2.70289]
[1733295586162,0.25306438,3700.0,3699.7,2.70289]
[1733295586363,0.002,3700.4,3699.7,2.70289]
[1733295586548,0.25307607,3700.3,3699.7,2.70289]
[1733295586771,0.25307607,3700.2,3699.7,2.70289]
[1733295586974,0.002,3700.4,3699.7,2.70289]
[1733295586975,0.25307607,3700.1,3699.7,2.70289]
[1733295587176,0.25307607,3700.0,3699.5,5.80662015]
[1733295587349,0.25307607,3699.9,3699.5,5.80662015]
[1733295587549,0.002,3700.4,3699.5,5.80662015]
[1733295587774,0.65802105,3700.3,3699.5,5.80662015]
[1733295587972,0.65802105,3700.2,3699.6,2.70297]
[1733295588175,0.25308502,3700.1,3699.6,2.70297]
[1733295588486,0.25308502,3700.0,3699.6,2.70297]
[1733295588693,0.002,3700.4,3699.6,2.70297]
[1733295588694,0.25308502,3699.9,3699.6,2.70297]
[1733295588861,0.002,3700.4,3699.6,2.70297]
[1733295589086,0.65794201,3700.3,3699.7,0.7556]
[1733295589285,0.25305462,3700.2,3700.1,2.70261]
[1733295590902,0.002,3700.4,3700.1,2.70261]
[1733295591095,0.25296321,3700.3,3700.1,2.70261]
[1733295591288,0.25296321,3700.2,3700.1,2.70261]
[1733295592855,0.5355333,3700.2,3700.1,2.70261]
[1733295593721,0.28257009,3700.2,3700.1,2.70261]
[1733295593879,0.5355319,3700.2,3700.1,2.70261]
[1733295594217,0.28257009,3700.2,3699.9,5.26800615]
[1733295594793,0.28257009,3700.2,3699.9,2.70275]
[1733295595302,0.28257009,3700.2,3699.5,3.10358015]
[1733295595596,0.28257009,3700.2,3700.1,2.70262]
[1733295601133,0.28257009,3700.2,3700.1,3.49492]
[1733295601908,0.28257009,3700.2,3700.1,2.70262]
[1733295602233,0.28257009,3700.2,3700.1,3.86039933]
[1733295602844,0.28257009,3700.2,3700.1,4.65179933]
[1733295603000,0.28257009,3700.2,3700.1,5.44042482]
[1733295606647,0.28257009,3700.2,3700.1,6.59820415]
[1733295606799,0.002,3700.4,3700.1,5.44042482]
[1733295607140,0.002,3700.4,3700.3,2.70248]
[1733295607337,0.002,3700.4,3700.3,4.67665933]
[1733295607552,0.002,3700.4,3700.3,5.61192973]
[1733295609204,0.002,3700.4,3700.3,4.4541504]
[1733295610027,0.002,3700.4,3700.3,4.79552973]
[1733295611645,0.002,3700.4,3700.3,3.6377504]
[1733295613503,0.002,3700.4,3700.3,4.4513504]
[1733295615209,0.002,3700.4,3700.3,0.97188884]
[1733295615444,0.002,3700.4,3700.1,1.21888838]
[1733295615825,0.002,3700.4,3700.3,2.70248]
[1733295623285,0.002,3700.4,3700.3,2.70048]
[1733295631721,0.002,3700.4,3700.3,3.85779665]
[1733295636797,0.7894,3700.3,3699.9,0.53164556]
[1733295637006,0.7894,3700.3,3699.7,1.15731665]
[1733295637234,0.7894,3700.3,3699.3,2.70315]
[1733295637435,2.70264,3700.1,3699.0,2.70339]
[1733295637607,0.002,3700.4,3699.2,2.70325]
[1733295637608,0.8149,3699.9,3699.2,2.70325]
[1733295637935,0.270264,3700.0,3698.7,0.55095494]
[1733295637936,0.8149,3699.7,3698.7,0.55095494]
[1733295638185,0.8149,3699.7,3698.9,3.86080665]
[1733295638381,0.8149,3699.7,3699.2,1.15731665]
[1733295638677,0.25323414,3699.6,3699.2,1.15731665]
[1733295638849,0.8149,3699.7,3699.2,1.15731665]
[1733295639478,0.25306223,3699.6,3699.2,1.15731665]
[1733295639651,1.06276223,3699.5,3699.2,1.15731665]
[1733295639855,0.8097,3699.5,3699.2,1.15731665]
[1733295642159,0.8097,3699.5,3699.2,3.86057665]
[1733295643379,0.8097,3699.5,3699.2,1.15731665]
[1733295643684,0.8097,3699.5,3699.1,2.70332]
[1733295643885,0.8097,3699.5,3699.1,2.70331]
[1733295644051,0.8097,3699.5,3698.9,1.15731665]
[1733295644414,0.8097,3699.5,3699.3,2.70321]
[1733295644879,0.8097,3699.5,3699.4,2.70314]
[1733295645928,0.8097,3699.5,3698.9,1.15731665]
[1733295646222,0.8097,3699.5,3699.3,2.7032]
[1733295646932,0.8097,3699.5,3698.9,1.15731665]
[1733295647083,0.8097,3699.5,3698.9,3.86076665]
[1733295647419,0.8097,3699.5,3699.2,2.70322]
[1733295647625,0.8097,3699.5,3698.9,3.86076665]
[1733295647923,0.8097,3699.5,3699.3,2.70318]
[1733295649208,0.8097,3699.5,3698.9,3.86076665]
[1733295649209,0.8097,3699.5,3698.9,1.15731665]
[1733295649416,0.8097,3699.5,3699.2,2.70322]
[1733295649618,0.8097,3699.5,3698.9,1.98761665]
[1733295649891,0.28259219,3699.4,3699.3,2.70318]
[1733295650195,0.28259219,3699.4,3699.3,2.70321]
[1733295651214,0.28259219,3699.4,3699.1,1.15731665]
[1733295651404,0.28259219,3699.4,3699.1,3.86065665]
[1733295652131,0.28259219,3699.4,3699.2,2.70322]
[1733295652925,0.28259219,3699.4,3699.3,2.70321]
[1733295655143,0.28259219,3699.4,3699.1,3.86064665]
[1733295655502,0.28259219,3699.4,3699.3,2.70321]
[1733295656427,0.28259219,3699.4,3699.1,1.15731665]
[1733295657040,0.7754,3699.3,3699.1,1.15731665]
[1733295659197,0.7754,3699.3,3698.7,1.15731665]
[1733295659441,0.7754,3699.3,3698.7,3.86094665]
[1733295659742,0.7754,3699.3,3698.5,3.25035586]
[1733295659911,0.7918,3699.1,3698.5,3.25035586]
[1733295660603,0.25254548,3699.0,3698.5,3.25035586]
[1733295660798,0.7918,3699.1,3698.7,3.86095665]
[1733295661734,0.7918,3699.1,3698.9,2.7035]
[1733295661935,0.7918,3699.1,3698.7,3.86093665]
[1733295663796,0.25271019,3699.0,3698.7,3.86093665]
[1733295664002,0.7918,3699.1,3698.7,3.86093665]
[1733295664327,0.25280151,3699.0,3698.7,3.86093665]
[1733295664532,0.7918,3699.1,3698.7,3.86093665]
[1733295664872,0.25278977,3699.0,3698.7,3.86093665]
[1733295665040,0.7918,3699.1,3698.9,2.7035]
[1733295665244,0.25290145,3699.0,3698.6,3.51241]
[1733295665445,0.7713,3699.4,3699.0,2.7034]
[1733295665632,0.7713,3699.4,3699.3,1.15731665]
[1733295666033,1.02416358,3699.4,3699.0,1.15731665]
[1733295666380,0.25286358,3699.3,3699.0,1.15731665]
[1733295666532,0.7713,3699.4,3699.0,1.15731665]
[1733295666733,0.25304809,3699.3,3699.0,1.15731665]
[1733295666968,0.25304809,3699.2,3699.0,1.15731665]
[1733295667170,0.7713,3699.4,3699.0,1.15731665]
[1733295667340,0.2531888,3699.3,3699.0,1.15731665]
[1733295667544,0.2531888,3699.2,3699.0,1.15731665]
[1733295667832,0.7713,3699.4,3699.0,1.15731665]
[1733295668095,0.25319941,3699.3,3699.0,1.15731665]
[1733295668265,0.25319941,3699.2,3699.0,1.15731665]
[1733295668467,0.2532316,3699.1,3699.0,1.15731665]
[1733295668777,0.25323242,3699.1,3699.0,1.15731665]
[1733295669072,0.7713,3699.4,3699.0,1.15731665]
[1733295669228,0.25323258,3699.3,3699.0,3.86074665]
[1733295669432,0.25323675,3699.2,3699.0,3.86074665]
[1733295669631,0.25323675,3699.1,3699.0,3.86074665]
[1733295669839,0.25323675,3699.1,3699.0,1.15731665]
[1733295671875,0.65847418,3699.1,3698.7,1.15731665]
[1733295672081,0.7713,3699.4,3698.7,1.15731665]
[1733295672082,0.25323675,3699.0,3698.7,1.15731665]
[1733295672257,0.25323675,3698.9,3698.7,1.15731665]
[1733295672441,0.25323675,3698.8,3698.7,1.15731665]
[1733295673067,0.25327601,3698.8,3698.7,3.86096665]
[1733295673455,0.25327601,3698.8,3698.7,1.15731665]
[1733295675456,0.25327601,3698.8,3698.1,2.70404]
[1733295675457,0.25327601,3698.8,3698.0,2.70409]
[1733295675787,0.25327601,3698.8,3697.8,0.8168]
[1733295675788,1.45183541,3698.7,3697.9,1.15731665]
[1733295675944,0.65853541,3698.6,3698.2,1.15731665]
[1733295676148,0.7933,3698.7,3698.2,1.15731665]
[1733295676149,0.65853541,3698.5,3698.2,1.15731665]
[1733295676393,0.25327601,3698.4,3698.2,1.15731665]
[1733295676548,0.25317335,3698.3,3698.2,1.15731665]
[1733295676748,1.45155882,3698.3,3698.2,1.15731665]
[1733295677360,1.04647335,3698.3,3698.2,1.15731665]
[1733295679989,0.7933,3698.3,3698.2,1.15731665]
[1733295680197,1.04618125,3698.3,3698.2,1.15731665]
[1733295680759,1.19125234,3698.3,3697.5,0.8168]
[1733295680961,2.70418,3698.0,3697.1,1.15731665]
[1733295681183,0.766,3697.8,3696.8,0.5325583]
[1733295681388,0.766,3697.8,3696.7,0.7934]
[1733295681389,0.766,3697.6,3696.7,0.7934]
[1733295681608,0.25288125,3697.5,3697.0,1.15731665]
[1733295681905,0.25288125,3697.4,3697.0,1.15731665]
[1733295682108,0.766,3697.6,3697.0,1.15731665]
[1733295682271,0.25272293,3697.5,3697.0,1.15731665]
[1733295682477,0.766,3697.6,3697.0,1.15731665]
[1733295682781,0.25257228,3697.5,3697.0,1.15731665]
[1733295683143,0.766,3697.6,3697.0,1.15731665]
[1733295683294,0.766,3697.6,3696.3,2.70536]
[1733295683295,0.40434742,3697.9,3697.5,1.15731665]
[1733295683457,1.21974742,3698.5,3697.9,2.70419]
[1733295683656,0.25242554,3698.4,3698.0,2.56779754]
[1733295683864,0.8154,3698.5,3698.0,2.56779754]
[1733295684608,0.65617887,3698.4,3697.3,2.7046]
[1733295684907,0.65617887,3698.3,3697.3,2.7046]
[1733295685091,1.46417887,3698.2,3697.2,2.56779754]
[1733295685296,0.65617887,3698.1,3697.6,2.56779754]
[1733295685504,0.25237989,3698.0,3697.8,2.70424]
[1733295685813,0.40377928,3698.3,3697.7,0.7965]
[1733295685954,0.2523581,3698.2,3697.7,0.7965]
[1733295686159,0.2523581,3698.1,3697.7,0.7965]
[1733295686359,0.808,3698.4,3697.6,5.27223754]
[1733295686360,0.40377846,3698.3,3697.6,5.27223754]
[1733295686604,0.808,3698.4,3697.6,5.27223754]
[1733295686605,0.25236157,3698.2,3697.6,5.27223754]
[1733295686799,0.808,3698.4,3697.6,5.27223754]
[1733295686800,0.25236157,3698.1,3697.6,5.27223754]
[1733295687016,0.808,3698.4,3697.6,5.27223754]
[1733295687222,0.65613272,3698.3,3697.6,5.27223754]
[1733295687421,0.25235874,3698.2,3697.6,2.56779754]
[1733295687724,0.25235874,3698.1,3697.7,2.70435]
[1733295687929,0.808,3698.4,3697.7,2.70435]
[1733295688219,0.8132,3698.2,3697.3,2.70465]
[1733295688379,0.8132,3698.2,3697.4,2.70459]
[1733295688380,0.6561311,3698.1,3697.4,2.70459]
[1733295688573,0.25235811,3698.0,3697.2,2.56779754]
[1733295688813,0.25235811,3697.9,3697.5,2.70449]
[1733295689017,0.25235811,3697.8,3697.5,2.70449]
[1733295689320,0.25235811,3697.8,3697.2,2.56779754]
[1733295689321,0.8132,3698.2,3697.6,2.56779754]
[1733295689499,0.25235122,3698.1,3697.8,2.70429]
[1733295689704,0.25235122,3698.0,3697.8,2.70429]
[1733295689904,0.8132,3698.2,3697.8,2.70429]
[1733295690216,0.25235651,3698.1,3697.8,2.70429]
[1733295690377,0.25235651,3698.0,3697.7,0.8108]
[1733295690574,0.8132,3698.2,3697.8,2.7043]
[1733295690781,0.25236348,3698.1,3697.8,2.7043]
[1733295691005,0.25236348,3698.0,3697.8,2.7043]
[1733295691171,0.8132,3698.2,3697.8,2.7043]
[1733295691519,0.8132,3698.2,3697.6,5.27222754]
[1733295691520,0.25237307,3698.1,3697.6,5.27222754]
[1733295691808,0.25237307,3698.0,3697.6,5.27222754]
[1733295692017,0.25237307,3697.9,3697.6,5.27222754]
[1733295692215,0.8132,3698.2,3697.6,5.27222754]
[1733295692421,0.25236873,3698.1,3697.6,5.27222754]
[1733295692618,0.25236873,3698.0,3697.6,5.27222754]
[1733295692912,0.8132,3698.2,3697.6,5.27222754]
[1733295693071,0.25235873,3698.1,3697.6,5.27222754]
[1733295693274,0.25235873,3698.0,3697.6,5.27222754]
[1733295693474,0.8132,3698.2,3697.6,5.27222754]
[1733295693714,0.2523654,3698.1,3697.6,5.27222754]
[1733295693927,0.2523654,3698.0,3697.6,5.27222754]
[1733295694217,0.8132,3698.2,3697.6,5.27222754]
[1733295694420,0.8132,3698.2,3697.1,2.70475]
[1733295694595,0.7609,3698.0,3697.1,2.70475]
[1733295694911,0.65618242,3698.1,3696.8,2.70504]
[1733295694912,0.7609,3697.8,3696.8,2.70504]
[1733295695115,0.25236305,3697.7,3696.8,2.70504]
[1733295695274,1.01326305,3697.6,3696.7,2.56779754]
[1733295695471,0.25236305,3697.5,3697.4,2.56779754]
[1733295695699,1.16470967,3698.1,3697.4,2.56779754]
[1733295695881,0.65619056,3698.0,3697.4,2.56779754]
[1733295696217,0.25238089,3697.9,3697.4,2.56779754]
[1733295696378,0.25238089,3697.8,3697.0,3.48117]
[1733295696579,0.25238089,3697.7,3697.0,0.7763]
[1733295696804,0.25238089,3697.6,3697.0,0.7763]
[1733295697113,0.1417128,3697.8,3697.0,0.7763]
[1733295697298,0.25241568,3697.7,3697.0,3.48113]
[1733295697617,0.25241568,3697.6,3697.0,3.48113]
[1733295697820,0.1417128,3697.8,3697.0,3.48113]
[1733295698144,0.25245545,3697.7,3697.0,0.7763]
[1733295698289,0.28269095,3697.9,3697.2,2.70474]
[1733295698614,0.25251333,3697.8,3697.2,2.70474]
[1733295698833,0.25251333,3697.7,3697.0,3.48117]
[1733295699112,0.28269095,3697.9,3697.1,2.70475]
[1733295699285,0.25251514,3697.8,3697.1,2.70475]
[1733295699620,0.25251514,3697.7,3697.1,2.70475]
[1733295699914,0.25251514,3697.6,3697.1,2.70475]
[1733295700079,0.40415212,3697.8,3697.1,2.70475]
[1733295700279,0.25259434,3697.7,3697.1,2.70475]
[1733295700478,0.25259434,3697.6,3697.1,3.23460724]
[1733295700777,0.25259434,3697.5,3697.1,3.23460724]
[1733295701114,0.25266827,3697.4,3697.1,3.23460724]
[1733295701315,0.40426556,3697.7,3697.1,3.23460724]
[1733295701491,0.25275449,3697.6,3697.1,0.52985724]
[1733295701696,0.25275449,3697.5,3697.1,0.52985724]
[1733295701913,0.25275449,3697.4,3697.1,0.52985724]
[1733295702120,0.45186702,3697.9,3697.1,0.52985724]
[1733295702325,0.65717478,3697.8,3697.1,0.52985724]
[1733295702520,1.43587478,3697.7,3697.0,0.8098]
[1733295702833,0.65717478,3697.6,3697.3,2.56779754]
[1733295703051,0.25275953,3697.5,3697.3,2.56779754]
[1733295703202,0.25275953,3697.4,3697.3,2.56779754]
[1733295703720,0.7787,3697.9,3697.3,2.56779754]
[1733295704234,0.65760389,3697.8,3697.3,2.56779754]
[1733295704408,0.80123428,3697.7,3697.3,2.56779754]
[1733295704608,0.65760389,3697.6,3697.0,0.8098]
[1733295704809,0.65760389,3697.5,3697.0,0.8098]
[1733295705034,0.25292465,3697.4,3697.0,3.51469]
[1733295705347,0.25292465,3697.3,3696.9,2.56779754]
[1733295705546,0.25292465,3697.2,3696.9,2.56779754]
[1733295705847,0.25292465,3697.1,3696.9,2.56779754]
[1733295706145,0.25292465,3697.0,3696.4,1.33058617]
[1733295706320,0.7963,3696.8,3696.3,2.70538]
[1733295706518,0.25292465,3696.7,3696.3,2.70538]
[1733295706725,0.25292465,3696.6,3696.3,2.70538]
[1733295706924,0.7963,3696.8,3696.3,2.70538]
[1733295707152,0.2532107,3696.7,3696.3,2.70538]
[1733295707350,0.7963,3696.8,3696.2,3.11648509]
[1733295707513,0.25315897,3696.7,3696.2,2.56779754]
[1733295707714,0.7963,3696.8,3696.3,2.70539]
[1733295707912,0.25316041,3696.7,3696.2,2.56779754]
[1733295708212,0.7963,3696.8,3696.2,5.27326754]
[1733295708213,0.25316041,3696.6,3696.2,5.27326754]
[1733295708448,0.7963,3696.8,3696.2,5.27326754]
[1733295708749,0.25312109,3696.7,3696.2,5.27326754]
[1733295708952,0.25312109,3696.6,3696.2,5.27326754]
[1733295709113,0.7963,3696.8,3695.8,2.56779754]
[1733295709310,0.8137,3696.6,3695.8,5.27354754]
[1733295709525,1.07572198,3696.5,3695.8,2.56779754]
[1733295709759,0.6580418,3696.4,3695.9,2.70567]
[1733295709929,0.6580418,3696.3,3696.0,2.70562]
[1733295710129,0.25312569,3696.2,3695.9,2.70563]
[1733295710330,0.25312569,3696.1,3695.9,2.70563]
[1733295710571,0.25312569,3696.0,3695.8,2.56779754]
[1733295710741,0.8137,3696.6,3695.8,2.56779754]
[1733295710742,0.8137,3696.6,3695.8,3.22737653]
[1733295711085,0.42154109,3696.9,3695.8,3.22737653]
[1733295711086,0.65768494,3696.5,3696.4,5.27312754]
[1733295711263,0.65768494,3696.5,3696.4,2.56779754]
[1733295711429,0.65750348,3696.5,3696.4,2.56779754]
[1733295711630,0.7763,3697.3,3696.4,6.06282754]
[1733295711840,1.2480355,3697.2,3696.8,5.27283754]
[1733295712035,0.8266234,3697.1,3696.8,5.27283754]
[1733295712277,0.57377614,3697.0,3696.8,2.56779754]
[1733295712480,0.25284726,3697.1,3696.9,2.70496]
[1733295712636,0.25276391,3697.0,3696.9,2.70496]
[1733295712972,0.25276391,3697.0,3696.8,5.27282754]
[1733295713136,0.25276391,3696.9,3696.6,2.70515]
[1733295713448,0.25275128,3696.8,3696.6,2.70515]
[1733295713648,0.40441093,3697.2,3696.6,2.70515]
[1733295713846,0.65716779,3697.1,3696.6,2.70515]
[1733295714053,0.7763,3697.3,3696.6,2.70515]
[1733295714054,0.25275686,3697.0,3696.6,2.70515]
[1733295714255,0.25275686,3696.9,3696.6,2.70515]
[1733295714474,0.25275686,3696.8,3696.4,3.35749754]
[1733295714783,0.40446138,3697.2,3696.8,2.70497]
[1733295714941,0.65724767,3697.1,3696.8,2.70497]
[1733295715279,0.25278629,3697.0,3696.8,5.27276754]
[1733295715645,0.25278629,3696.9,3696.8,2.56779754]
[1733295716369,0.25278629,3696.9,3696.8,6.03863754]
[1733295716542,0.25278629,3696.9,3696.8,6.91572724]
[1733295716749,0.40445905,3697.3,3697.1,2.70475]
[1733295717057,0.8104,3697.6,3697.2,2.56779754]
[1733295717250,0.6572299,3697.5,3697.2,2.56779754]
[1733295717451,0.6572299,3697.4,3697.2,2.56779754]
[1733295717655,0.25278073,3697.3,3697.2,2.56779754]
[1733295717941,0.25278073,3697.3,3696.8,2.56779754]
[1733295718143,0.6572828,3697.2,3696.8,5.27282754]
[1733295718456,0.25278073,3697.1,3696.9,2.70495]
[1733295718659,1.04688073,3697.0,3696.7,2.70509]
[1733295718869,0.25278073,3696.9,3696.3,0.7693]
[1733295719074,0.25278073,3696.9,3696.4,3.11954781]
[1733295719273,0.25278073,3696.8,3696.4,3.11954781]
[1733295719604,0.25278073,3696.7,3696.4,3.11954781]